[Event "XVII MetLife Najdorf Open 2017"]
[Site "Warsaw"]
[Date "2017.07.17"]
[Round "9"]
[White "Nowicki, Bartosz"]
[Black "Sliwicka, Alicja"]
[Result "1-0"]
[ECO "B42"]
[WhiteElo "2262"]
[BlackElo "2164"]
[Annotator "NA"]
[PlyCount "103"]
[EventDate "2017.??.??"]
[EventType "swiss"]
[EventCountry "POL"]
[SourceTitle "playchess.com"]
[Source "ChessBase"]
[SourceQuality "1"]
[TimeControl "40/5400+30:1800+30"]

1. e4 {[%emt 0:00:00]} c5 {[%emt 0:00:17]} 2. Nf3 {[%emt 0:00:00]} e6 {[%emt 0:00:05]} 3. d4 {[%emt 0:00:00]} cxd4 {[%emt 0:00:06]} 4. Nxd4 {[%emt 0:00:00]} a6 {[%emt 0:00:07]} 5. Bd3 {[%emt 0:00:33]} Nf6 {[%emt 0:00:07]} 6. Qe2 {[%emt 0:00:08]} d6 {[%emt 0:00:19]} 7. O-O {[%emt 0:00:16]} Qc7 {[%emt 0:00:14]} 8. c4 {[%emt 0:00:30]} g6 {[%emt 0:00:09]} 9. b3 {[%emt 0:00:25]} Bg7 {[%emt 0:00:27]} 10. Bb2 {[%emt 0:00:09]} O-O {[%emt 0:01:01]} 11. Kh1 {[%emt 0:00:49] B42: Sicilian: Kan Variation: 5 Bd3} Nbd7 {[%emt 0:01:51]} 12. f4 {[%emt 0:00:57]} b6 {[%emt 0:02:53]} 13. Nf3 {[%emt 0:00:47]} Bb7 {[%emt 0:01:47]} 14. Nbd2 {[%emt 0:00:34] [#]} Rfe8 $146 {[%emt 0:04:15]} ({Predecessor:} 14... Rad8 15. Rae1 e5 16. f5 Nc5 17. Bb1 b5 18. b4 Na4 {0-1 (41) Kanovsky,D (2368)-Kalod,R (2512) Brno 2006}) 15. Rae1 {[%emt 0:07:53]} Rad8 {[%emt 0:04:48]} 16. Bb1 {[%emt 0:04:09]} Nc5 {[%emt 0:08:32]} 17. e5 {[%emt 0:01:22]} Nh5 {[%emt 0:10:17]} 18. Ng5 {[%emt 0:05:09]} Qe7 {[%emt 0:17:47]} 19. Nde4 {[%emt 0:06:33]} Nxe4 {[%emt 0:02:17]} 20. Nxe4 {[%emt 0:02:53]} Bxe4 {[%emt 0:08:55]} 21. Bxe4 {[%emt 0:01:24]} dxe5 $14 {[%emt 0:03:09]} 22. fxe5 {[%emt 0:01:21]} Bh6 {[%emt 0:05:07]} 23. Qf3 {[%emt 0:02:28]} Rf8 {[%emt 0:05:05]} 24. g4 {[%emt 0:00:40]} Nf4 {[%emt 0:02:04]} 25. Bc1 {[%emt 0:05:16]} g5 {[%emt 0:00:19]} 26. Qf2 {[%emt 0:08:14]} Nd3 {[%emt 0:02:25]} 27. Bxd3 {[%emt 0:00:23]} Rxd3 {[%emt 0:00:06]} 28. Qxb6 {[%emt 0:00:14]} Qd7 {[%emt 0:01:08]} 29. Ba3 {[%emt 0:02:03]} Rd8 {[%emt 0:01:18]} 30. Bd6 {[%emt 0:00:44]} a5 {[%emt 0:04:27]} 31. c5 {[%emt 0:00:57]} Rc8 {[%emt 0:00:41]} 32. Rc1 {[%emt 0:01:01]} Rc6 {[%emt 0:01:55]} 33. Qxa5 {[%emt 0:02:59]} Bg7 {[%emt 0:04:25]} 34. Qa8+ {[%emt 0:00:45]} Rc8 {[%emt 0:00:15]} 35. Qe4 {[%emt 0:01:57]} Rd5 {[%emt 0:01:20]} 36. b4 {[%emt 0:02:38]} Qc6 {[%emt 0:01:46]} 37. Qf3 {[%emt 0:00:34]} Qb7 {[%emt 0:01:31]} 38. c6 {[%emt 0:01:39]} Rxc6 {[%emt 0:01:21]} 39. Rxc6 {[%emt 0:00:08]} Qxc6 {[%emt 0:00:08]} 40. Qxf7+ {[%emt 0:00:00]} Kh8 {[%emt 0:00:05]} 41. Qf3 {[%emt 0:00:32]} h6 {[%emt 0:02:12]} 42. Bf8 {[%emt 0:03:21]} Bxe5 {[%emt 0:03:06]} 43. Bxh6 {[%emt 0:00:57]} Rd6 {[%emt 0:05:38]} 44. Qxc6 {[%emt 0:00:29]} Rxc6 {[%emt 0:00:04]} 45. Bxg5 {[%emt 0:00:13]} Rc4 {[%emt 0:00:55]} 46. Bf6+ {[%emt 0:01:19]} Bxf6 {[%emt 0:00:05]} 47. Rxf6 {[%emt 0:00:03]} Rxg4 {[%emt 0:02:31]} 48. a3 {[%emt 0:00:15]} Re4 {[%emt 0:00:59]} 49. Rf3 {[%emt 0:00:29]} Rd4 {[%emt 0:02:22]} 50. Rb3 {[%emt 0:00:16]} e5 {[%emt 0:01:49]} 51. b5 {[%emt 0:00:06]} e4 {[%emt 0:01:03]} 52. b6 {[%emt 0:00:08]} 1-0

[Event "XVII MetLife Najdorf Open 2017"]
[Site "Warsaw"]
[Date "2017.07.17"]
[Round "9"]
[White "Zlatin, Alexander"]
[Black "Domanski, Lukasz"]
[Result "1-0"]
[ECO "C24"]
[WhiteElo "2259"]
[BlackElo "2113"]
[Annotator "NA"]
[PlyCount "47"]
[EventDate "2017.??.??"]
[EventType "swiss"]
[EventCountry "POL"]
[SourceTitle "playchess.com"]
[Source "ChessBase"]
[SourceQuality "1"]
[TimeControl "40/5400+30:1800+30"]

1. e4 {[%emt 0:00:00]} e5 {[%emt 0:05:09]} 2. Nf3 {[%emt 0:00:00]} d6 {[%emt 0:00:03]} 3. Bc4 {[%emt 0:00:17]} Be7 {[%emt 0:01:53]} 4. h3 {[%emt 0:02:30]} Nf6 {[%emt 0:01:02]} 5. d3 {[%emt 0:00:07]} O-O {[%emt 0:01:58]} 6. c3 {[%emt 0:00:38]} c6 {[%emt 0:01:57]} 7. Bb3 {[%emt 0:01:16]} Nbd7 {[%emt 0:02:55]} 8. Be3 {[%emt 0:12:32]} Qc7 {[%emt 0:06:24]} 9. g4 {[%emt 0:03:47]} Nc5 {[%emt 0:08:30]} 10. Bxc5 {[%emt 0:04:33]} dxc5 {[%emt 0:00:50]} 11. Nbd2 $17 {[%emt 0:00:29]} b5 {[%emt 0:03:52]} 12. Qe2 {[%emt 0:00:19]} a5 {[%emt 0:04:03]} 13. Nf1 {[%emt 0:07:04]} Ba6 {[%emt 0:08:37]} 14. a4 {[%emt 0:06:43]} Rab8 {[%emt 0:05:19]} 15. Ng3 {[%emt 0:05:33]} Rfd8 {[%emt 0:03:08]} 16. Ng5 {[%emt 0:08:13]} c4 {[%emt 0:01:08]} 17. dxc4 {[%emt 0:04:14]} h6 {[%emt 0:01:29]} 18. Nxf7 {[%emt 0:01:40]} Kxf7 {[%emt 0:02:37]} 19. cxb5+ {[%emt 0:00:05]} Kg6 {[%emt 0:04:12]} 20. Qc4 {[%emt 0:01:52]} Bc8 {[%emt 0:06:25]} 21. g5 {[%emt 0:06:48]} Rf8 {[%emt 0:04:33]} 22. gxf6 {[%emt 0:00:45]} Rxf6 {[%emt 0:00:15]} 23. Rg1 {[%emt 0:04:52]} Be6 {[%emt 0:05:06]} 24. Nh5+ {[%emt 0:00:50]} 1-0

[Event "XVII MetLife Najdorf Open 2017"]
[Site "Warsaw"]
[Date "2017.07.17"]
[Round "9"]
[White "Adamski, Jan"]
[Black "Sieber, Fiona"]
[Result "1/2-1/2"]
[ECO "A13"]
[WhiteElo "2250"]
[BlackElo "2287"]
[Annotator "NA"]
[PlyCount "56"]
[EventDate "2017.??.??"]
[EventType "swiss"]
[EventCountry "POL"]
[SourceTitle "playchess.com"]
[Source "ChessBase"]
[SourceQuality "1"]
[TimeControl "40/5400+30:1800+30"]

1. Nf3 {[%emt 0:01:53]} Nf6 {[%emt 0:00:05]} 2. c4 {[%emt 0:01:01]} e6 {[%emt 0:00:06]} 3. g3 {[%emt 0:01:03]} d5 {[%emt 0:00:07]} 4. Bg2 {[%emt 0:00:19]} dxc4 {[%emt 0:00:06]} 5. Qa4+ {[%emt 0:00:17]} c6 {[%emt 0:00:06]} 6. Qxc4 {[%emt 0:00:09]} b5 {[%emt 0:00:09] A13: English Opening: 1...e6} 7. Qb3 {[%emt 0:00:13]} Bb7 {[%emt 0:00:38]} 8. O-O {[%emt 0:00:42]} Nbd7 {[%emt 0:00:23]} 9. d4 {[%emt 0:00:38]} a6 {[%emt 0:00:22]} 10. Ne5 {[%emt 0:03:21]} Nxe5 {[%emt 0:00:51]} 11. dxe5 {[%emt 0:00:05]} Nd5 {[%emt 0:01:03]} 12. Nc3 {[%emt 0:09:16]} Be7 {[%emt 0:10:53]} 13. Rd1 {[%emt 0:12:10]} Qb8 {[%emt 0:04:14] [#]} 14. Nxd5 $146 {[%emt 0:04:56]} ({Predecessor:} 14. Ne4 Qxe5 {½-½ (30) Mareco,S (2599)-Peralta,F (2560) Buenos Aires 2015}) 14... cxd5 {[%emt 0:00:26]} 15. Bf4 {[%emt 0:02:31]} O-O {[%emt 0:01:09]} 16. e4 {[%emt 0:01:22]} dxe4 {[%emt 0:06:18]} 17. Qe3 {[%emt 0:02:49]} h6 {[%emt 0:06:11]} 18. Rd7 {[%emt 0:04:10]} ({Don't play} 18. Bxe4 g5 $17) 18... Bd8 {[%emt 0:19:29]} 19. Bxe4 {[%emt 0:06:14]} Bc8 $2 {[%emt 0:05:27]} (19... Bxe4 $11 20. Qxe4 Ra7) 20. Rxd8 {[%emt 0:13:03]} Rxd8 {[%emt 0:00:07]} 21. Bxh6 {[%emt 0:00:08]} gxh6 {[%emt 0:04:32]} 22. Qxh6 $18 {[%emt 0:01:50]} Rd7 {[%emt 0:01:36]} 23. Bh7+ {[%emt 0:13:16]} Kh8 {[%emt 0:00:05]} 24. Bg6+ {[%emt 0:05:24]} Kg8 {[%emt 0:00:04]} 25. Bh7+ {[%emt 0:00:51]} Kh8 {[%emt 0:00:04]} 26. Be4+ {[%emt 0:01:45]} Kg8 {[%emt 0:00:05]} 27. Bh7+ {[%emt 0:04:57]} Kh8 {[%emt 0:00:02]} 28. Be4+ {[%emt 0:00:08]} Kg8 {[%emt 0:00:08]} 1/2-1/2

[Event "XVII MetLife Najdorf Open 2017"]
[Site "Warsaw"]
[Date "2017.07.17"]
[Round "9"]
[White "Zochowski, Kacper"]
[Black "Kucza, Karol"]
[Result "0-1"]
[ECO "C60"]
[WhiteElo "2240"]
[BlackElo "2297"]
[Annotator "NA"]
[PlyCount "60"]
[EventDate "2017.??.??"]
[EventType "swiss"]
[EventCountry "POL"]
[SourceTitle "playchess.com"]
[Source "ChessBase"]
[SourceQuality "1"]
[TimeControl "40/5400+30:1800+30"]

1. e4 {[%emt 0:00:00]} e5 {[%emt 0:00:05]} 2. Nf3 {[%emt 0:00:00]} Nc6 {[%emt 0:00:07]} 3. Bb5 {[%emt 0:00:00]} a6 {[%emt 0:00:07]} 4. Ba4 {[%emt 0:00:00]} Nge7 {[%emt 0:00:06]} 5. O-O {[%emt 0:01:10]} g6 {[%emt 0:00:09]} 6. c3 {[%emt 0:06:38]} Bg7 {[%emt 0:00:58]} 7. d4 {[%emt 0:02:20]} exd4 {[%emt 0:00:51]} 8. cxd4 {[%emt 0:02:04]} b5 {[%emt 0:00:15] C60: Ruy Lopez: Unusual Black 3rd moves and 3...g6} 9. Bb3 {[%emt 0:01:38]} (9. Bc2 O-O 10. d5 Na5 11. Nbd2 d6 12. Rb1 c6 13. b4 Nb7 14. dxc6 Nxc6 15. Bb2 Bxb2 16. Rxb2 {0-1 (45) Bok,B (2598)-Grischuk,A (2737) Doha 2016}) 9... O-O {[%emt 0:01:52]} 10. Nc3 {[%emt 0:10:48]} Na5 {[%emt 0:02:01]} 11. Bc2 {[%emt 0:04:29]} d6 {[%emt 0:00:10]} 12. b3 {[%emt 0:29:41]} Bg4 {[%emt 0:08:13]} 13. Ne2 $146 {[%emt 0:13:01]} ({Predecessor:} 13. Be3 c5 {½-½ (40) Sadikhov,U (2383)-Marholev,D (2225) Cesme 2016}) 13... c5 {[%emt 0:07:11]} 14. Bb2 {[%emt 0:00:45]} Nac6 {[%emt 0:02:57]} 15. Rb1 {[%emt 0:02:40]} Bxf3 {[%emt 0:06:19]} 16. gxf3 {[%emt 0:00:57]} Nxd4 {[%emt 0:00:25]} 17. Nxd4 {[%emt 0:00:26]} Bxd4 {[%emt 0:00:16]} 18. Bxd4 {[%emt 0:00:10]} cxd4 {[%emt 0:00:04]} 19. Qxd4 {[%emt 0:00:28]} Nc6 {[%emt 0:00:45]} 20. Qe3 {[%emt 0:02:49]} Rc8 {[%emt 0:11:40]} 21. Rbd1 {[%emt 0:04:12]} Qf6 $11 {[%emt 0:05:25]} 22. Bd3 {[%emt 0:01:37]} Rfe8 {[%emt 0:11:21]} 23. Be2 {[%emt 0:02:17]} Nb4 {[%emt 0:02:52]} 24. Qd4 {[%emt 0:07:58]} Qg5+ {[%emt 0:04:00]} 25. Kh1 {[%emt 0:00:05]} Nxa2 {[%emt 0:00:09]} 26. Qxd6 {[%emt 0:04:39]} Nc3 {[%emt 0:03:00]} 27. Qd2 {[%emt 0:00:18]} Qh4 {[%emt 0:10:08]} 28. Rde1 {[%emt 0:00:48]} Rc5 {[%emt 0:04:32]} 29. Qd6 {[%emt 0:00:38]} Rg5 {[%emt 0:00:11]} 30. Bd1 {[%emt 0:01:22]} Nxd1 {[%emt 0:01:32]} 0-1

[Event "XVII MetLife Najdorf Open 2017"]
[Site "Warsaw"]
[Date "2017.07.17"]
[Round "9"]
[White "Sahil, Tickoo"]
[Black "Paramzina, Anastasya"]
[Result "1-0"]
[ECO "E32"]
[WhiteElo "2234"]
[BlackElo "2166"]
[Annotator "NA"]
[PlyCount "129"]
[EventDate "2017.??.??"]
[EventType "swiss"]
[EventCountry "POL"]
[SourceTitle "playchess.com"]
[Source "ChessBase"]
[SourceQuality "1"]
[TimeControl "40/5400+30:1800+30"]

1. d4 {[%emt 0:04:58]} Nf6 {[%emt 0:00:04]} 2. c4 {[%emt 0:00:04]} e6 {[%emt 0:00:03]} 3. Nc3 {[%emt 0:00:05]} Bb4 {[%emt 0:00:03]} 4. Qc2 {[%emt 0:00:05]} d5 {[%emt 0:00:21]} 5. a3 {[%emt 0:00:06]} Bxc3+ {[%emt 0:00:06]} 6. Qxc3 {[%emt 0:00:03]} O-O {[%emt 0:01:36]} 7. Nf3 {[%emt 0:00:17]} dxc4 {[%emt 0:00:20]} 8. Qxc4 {[%emt 0:00:03]} b6 {[%emt 0:00:11]} 9. Bg5 {[%emt 0:00:17]} Ba6 {[%emt 0:00:16]} 10. Qa4 {[%emt 0:00:02]} Bb7 {[%emt 0:00:38]} 11. e3 {[%emt 0:18:10]} Nbd7 {[%emt 0:00:16]} 12. Be2 {[%emt 0:01:02]} h6 {[%emt 0:01:58]} 13. Bh4 {[%emt 0:04:06]} c5 {[%emt 0:05:53]} 14. O-O {[%emt 0:01:08]} cxd4 {[%emt 0:00:14]} 15. Qxd4 {[%emt 0:04:59]} g5 {[%emt 0:00:33]} 16. Bg3 {[%emt 0:01:12]} Ne4 {[%emt 0:00:09]} 17. Rad1 {[%emt 0:03:26]} Ndc5 {[%emt 0:00:40]} 18. b4 {[%emt 0:18:55]} Na4 {[%emt 0:00:07]} 19. Qa1 {[%emt 0:01:51]} Bd5 {[%emt 0:21:52]} 20. Be5 {[%emt 0:02:55]} f6 {[%emt 0:03:48]} 21. Bb5 {[%emt 0:15:37]} g4 {[%emt 0:02:01]} 22. Nd2 {[%emt 0:01:38]} Nxd2 {[%emt 0:04:16]} 23. Rxd2 {[%emt 0:00:13]} fxe5 {[%emt 0:00:21]} 24. Bxa4 {[%emt 0:13:07]} Qg5 {[%emt 0:07:08]} 25. Qb2 {[%emt 0:01:13]} Rf5 {[%emt 0:11:20]} 26. Bb3 {[%emt 0:00:57]} e4 {[%emt 0:00:10]} 27. Rc1 {[%emt 0:03:34]} Qg7 {[%emt 0:00:51]} 28. Qxg7+ {[%emt 0:00:09]} Kxg7 {[%emt 0:00:05]} 29. Rc7+ {[%emt 0:00:11]} Kf6 {[%emt 0:00:49]} 30. Bxd5 {[%emt 0:00:48]} Rxd5 {[%emt 0:14:08]} 31. Rxd5 {[%emt 0:00:02]} exd5 {[%emt 0:00:06]} 32. Rc6+ {[%emt 0:00:29]} Kg5 {[%emt 0:19:28]} 33. Rd6 {[%emt 0:00:54]} Rc8 {[%emt 0:00:20]} 34. Rxd5+ {[%emt 0:00:17]} Kf6 {[%emt 0:00:27]} 35. g3 {[%emt 0:00:09]} Rc1+ {[%emt 0:01:43]} 36. Kg2 {[%emt 0:00:01]} Ra1 {[%emt 0:00:10]} 37. Rd6+ {[%emt 0:00:37]} Kf5 {[%emt 0:01:25]} 38. Rxh6 {[%emt 0:01:29]} Rxa3 {[%emt 0:00:11]} 39. Rh5+ {[%emt 0:00:26]} Kf6 {[%emt 0:00:31]} 40. h3 {[%emt 0:00:00]} gxh3+ {[%emt 0:02:51]} 41. Kxh3 {[%emt 0:07:33]} Ra4 {[%emt 0:04:19]} 42. b5 {[%emt 0:06:34]} Ra2 {[%emt 0:10:44]} 43. Kg2 {[%emt 0:00:16]} Ke6 {[%emt 0:05:14]} 44. g4 {[%emt 0:00:24]} Ra1 {[%emt 0:06:44]} 45. Rf5 {[%emt 0:04:33]} a5 {[%emt 0:01:46]} 46. bxa6 {[%emt 0:00:13]} Rxa6 {[%emt 0:00:07]} 47. Rb5 {[%emt 0:00:59]} Kd6 {[%emt 0:01:13]} 48. Kg3 {[%emt 0:00:44]} Kc6 {[%emt 0:00:05]} 49. Rb4 {[%emt 0:00:30]} Kd5 {[%emt 0:00:18]} 50. g5 {[%emt 0:00:55]} Kc5 {[%emt 0:02:17]} 51. Rxe4 {[%emt 0:00:10]} b5 {[%emt 0:00:01]} 52. Re5+ {[%emt 0:00:49]} Kc4 {[%emt 0:00:03]} 53. Re8 {[%emt 0:00:33]} Rb6 {[%emt 0:00:41]} 54. f4 {[%emt 0:08:35]} b4 {[%emt 0:00:08]} 55. f5 {[%emt 0:01:11]} b3 {[%emt 0:00:07]} 56. Rc8+ {[%emt 0:00:27]} Kd3 {[%emt 0:01:43]} 57. Rc1 {[%emt 0:00:26]} b2 {[%emt 0:02:36]} 58. Rb1 {[%emt 0:00:01]} Kxe3 {[%emt 0:00:17]} 59. g6 {[%emt 0:01:16]} Rb8 {[%emt 0:00:38]} 60. Kg4 {[%emt 0:02:44]} Ke4 {[%emt 0:00:10]} 61. g7 {[%emt 0:02:16]} Ke5 {[%emt 0:00:14]} 62. Kg5 {[%emt 0:00:09]} Rb3 {[%emt 0:00:19]} 63. Re1+ {[%emt 0:00:55]} Kd6 {[%emt 0:00:13]} 64. Kf6 {[%emt 0:00:28]} Rb8 {[%emt 0:00:23]} 65. Rd1+ {[%emt 0:00:09] Kd5} 1-0

[Event "XVII MetLife Najdorf Open 2017"]
[Site "Warsaw"]
[Date "2017.07.17"]
[Round "9"]
[White "Khalafova, Narmin"]
[Black "Schroeder, Kevin"]
[Result "1-0"]
[ECO "A40"]
[WhiteElo "2224"]
[BlackElo "2321"]
[Annotator "NA"]
[PlyCount "111"]
[EventDate "2017.??.??"]
[EventType "swiss"]
[EventCountry "POL"]
[SourceTitle "playchess.com"]
[Source "ChessBase"]
[SourceQuality "1"]
[TimeControl "40/5400+30:1800+30"]

1. d4 {[%emt 0:08:01]} c6 {[%emt 0:00:05]} 2. Nf3 {[%emt 0:02:38]} g6 {[%emt 0:00:10]} 3. Bf4 {[%emt 0:00:43] A40: Unusual replies to 1 d4} (3. e4 Bg7 4. Nc3 d6 5. Be2 Nf6 6. O-O O-O 7. a4 Nbd7 8. Be3 e5 9. dxe5 dxe5 10. Nd2 Qe7 11. Nc4 Nc5 12. Qd6 Qxd6 13. Nxd6 Ne6 14. Rfd1 Nd4 15. Bxd4 exd4 16. Rxd4 Nd7 17. Rdd1 Nc5 18. a5 Rd8 {1-0 (46) Potkin,V (2625)-Kalashian,D (2380) Yerevan 2014}) 3... Bg7 {[%emt 0:00:08]} 4. e3 {[%emt 0:00:20]} d6 {[%emt 0:00:04]} 5. h3 {[%emt 0:01:31]} Nd7 {[%emt 0:00:23]} 6. Nbd2 {[%emt 0:02:55]} e5 $146 {[%emt 0:00:52]} ({Predecessor:} 6... Nh6 7. Be2 O-O 8. c3 Kh8 9. Bh2 f6 10. O-O Nf7 11. Re1 e5 12. dxe5 dxe5 13. Nc4 {½-½ (31) Zatko,G (2148)-Kovacocy,P (2221) Slovakia 2012}) 7. Bh2 {[%emt 0:01:39]} Qe7 {[%emt 0:08:09]} 8. Nc4 {[%emt 0:12:18]} Nb6 {[%emt 0:01:46]} 9. Nxb6 {[%emt 0:03:46]} axb6 {[%emt 0:01:45]} 10. Be2 {[%emt 0:00:42]} Nh6 {[%emt 0:02:52]} 11. c3 {[%emt 0:03:02]} O-O {[%emt 0:00:20]} 12. a4 {[%emt 0:01:57]} Nf5 {[%emt 0:03:01]} 13. O-O {[%emt 0:03:31]} Re8 {[%emt 0:06:15]} 14. Re1 {[%emt 0:05:32]} Nh4 {[%emt 0:03:38]} 15. Nxh4 {[%emt 0:02:49]} Qxh4 {[%emt 0:04:25]} 16. Qb3 {[%emt 0:01:01]} Qd8 {[%emt 0:00:32]} 17. Bc4 {[%emt 0:06:47]} Qc7 {[%emt 0:01:57]} 18. Rad1 {[%emt 0:03:27]} Bf5 {[%emt 0:01:02]} 19. e4 {[%emt 0:04:32]} Be6 {[%emt 0:00:03]} 20. d5 {[%emt 0:03:24]} Bc8 {[%emt 0:01:35]} 21. dxc6 {[%emt 0:03:22]} bxc6 {[%emt 0:05:00]} 22. Rd3 {[%emt 0:01:11]} Be6 {[%emt 0:01:24]} 23. Bxe6 {[%emt 0:01:26]} Rxe6 {[%emt 0:00:25]} 24. Red1 {[%emt 0:01:09]} Bf8 {[%emt 0:00:32]} 25. Qc2 {[%emt 0:01:48]} Qb7 {[%emt 0:02:39]} 26. c4 {[%emt 0:02:34]} b5 {[%emt 0:01:23]} 27. axb5 {[%emt 0:03:39]} cxb5 {[%emt 0:00:27]} 28. Rb3 {[%emt 0:02:59]} Rc8 $14 {[%emt 0:00:53]} 29. Qe2 {[%emt 0:04:11]} b4 {[%emt 0:01:58]} 30. Rd5 {[%emt 0:02:46]} Ra8 {[%emt 0:03:27]} 31. Bg3 {[%emt 0:00:46]} Ree8 {[%emt 0:03:43]} 32. Qd2 {[%emt 0:02:57]} Reb8 {[%emt 0:00:31]} 33. Rf3 {[%emt 0:01:16]} b3 {[%emt 0:05:27]} 34. c5 {[%emt 0:02:58]} Ra1+ {[%emt 0:01:15]} 35. Kh2 {[%emt 0:00:03]} Qa6 {[%emt 0:00:16]} 36. Rfd3 {[%emt 0:01:36]} Rb5 {[%emt 0:02:02]} 37. Qc3 {[%emt 0:01:33]} Rxc5 {[%emt 0:00:48]} 38. Rxc5 {[%emt 0:00:20]} dxc5 {[%emt 0:00:05]} 39. Bxe5 {[%emt 0:00:57]} Rc1 {[%emt 0:02:13]} 40. Qd2 {[%emt 0:00:00]} Rc2 {[%emt 0:00:24]} 41. Qf4 {[%emt 0:08:50]} Qe6 {[%emt 0:07:11]} 42. Bf6 {[%emt 0:11:41]} Rc4 {[%emt 0:07:17]} 43. Rd8 {[%emt 0:01:58]} Rxe4 {[%emt 0:03:36]} 44. Qb8 {[%emt 0:09:23]} Qxf6 {[%emt 0:01:09]} 45. Rxf8+ {[%emt 0:00:03]} Kg7 {[%emt 0:00:05]} 46. Rg8+ {[%emt 0:00:14]} Kh6 {[%emt 0:00:09]} 47. Qf8+ {[%emt 0:01:00]} Kh5 {[%emt 0:01:31]} 48. Qxc5+ {[%emt 0:00:55]} g5 {[%emt 0:03:01]} 49. g4+ {[%emt 0:01:33]} Kh4 {[%emt 0:00:19]} 50. Kg2 {[%emt 0:00:35]} Re2 {[%emt 0:02:36]} 51. Rb8 {[%emt 0:00:15]} Qxb2 {[%emt 0:01:15]} 52. Rb6 {[%emt 0:00:41]} f6 {[%emt 0:00:04]} 53. Qf5 {[%emt 0:00:28]} h5 {[%emt 0:08:44]} 54. Qf3 {[%emt 0:00:21]} Qe5 {[%emt 0:00:25]} 55. Re6 {[%emt 0:00:12]} Re3 {[%emt 0:03:56]} 56. Qxe3 {[%emt 0:00:56]} 1-0

[Event "XVII MetLife Najdorf Open 2017"]
[Site "Warsaw"]
[Date "2017.07.17"]
[Round "9"]
[White "Zaleski, Lukasz"]
[Black "Nowak, Kamil"]
[Result "1/2-1/2"]
[ECO "C13"]
[WhiteElo "2220"]
[BlackElo "2362"]
[Annotator "NA"]
[PlyCount "56"]
[EventDate "2017.??.??"]
[EventType "swiss"]
[EventCountry "POL"]
[SourceTitle "playchess.com"]
[Source "ChessBase"]
[SourceQuality "1"]
[TimeControl "40/5400+30:1800+30"]

1. e4 {[%emt 0:00:36]} e6 {[%emt 0:00:10]} 2. d4 {[%emt 0:00:22]} d5 {[%emt 0:00:07]} 3. Nc3 {[%emt 0:00:15]} Nf6 {[%emt 0:00:14]} 4. Bg5 {[%emt 0:01:08]} dxe4 {[%emt 0:00:13]} 5. Nxe4 {[%emt 0:00:14]} Be7 {[%emt 0:00:06]} 6. Nxf6+ {[%emt 0:01:13]} Bxf6 {[%emt 0:00:09]} 7. Bxf6 {[%emt 0:00:09]} Qxf6 {[%emt 0:00:04]} 8. Nf3 {[%emt 0:00:14]} O-O {[%emt 0:00:10]} 9. Qd2 {[%emt 0:01:11]} b6 {[%emt 0:12:25]} 10. Bb5 $146 {[%emt 0:13:30] C13: French: Classical System: 4 Bg5 Be7, Alekhine-Chatard Attack} ({Predecessor:} 10. O-O-O Bb7 11. Ne5 c5 12. Bb5 a6 13. Be2 b5 14. Bf3 Bxf3 15. gxf3 Rd8 16. Ng4 Qe7 17. Qf4 Nc6 18. dxc5 Qxc5 19. Nh6+ gxh6 20. Rhg1+ Kf8 21. Qxh6+ Ke7 22. Qh4+ Kf8 23. Qh6+ Ke7 {½-½ (23) Bacallao Alonso,Y (2532)-Sadler,M (2625) Barcelona 2011}) 10... Bb7 {[%emt 0:03:12]} 11. Qe3 {[%emt 0:06:21]} a6 {[%emt 0:04:11]} 12. Bd3 {[%emt 0:06:41]} Bxf3 {[%emt 0:01:03]} 13. gxf3 {[%emt 0:06:25]} Nd7 {[%emt 0:00:10]} 14. Be4 {[%emt 0:12:42]} Rad8 {[%emt 0:01:16]} 15. O-O-O {[%emt 0:06:39]} e5 {[%emt 0:04:25]} 16. dxe5 {[%emt 0:02:54]} Nxe5 {[%emt 0:03:37]} 17. Qc3 {[%emt 0:09:51]} Qf4+ {[%emt 0:01:56]} 18. Kb1 {[%emt 0:00:42]} c5 {[%emt 0:05:39]} 19. Qb3 {[%emt 0:09:53]} b5 {[%emt 0:02:26]} 20. Qe3 $11 {[%emt 0:05:43]} Qxe3 {[%emt 0:09:41]} 21. fxe3 {[%emt 0:00:06]} Nc4 {[%emt 0:00:04]} 22. Bb7 {[%emt 0:01:23]} Nxe3 {[%emt 0:03:57]} 23. Rxd8 {[%emt 0:00:48]} Rxd8 {[%emt 0:00:01]} 24. Bxa6 {[%emt 0:00:35]} b4 {[%emt 0:00:03]} 25. Re1 {[%emt 0:00:31]} Ng2 {[%emt 0:00:39]} 26. Rf1 {[%emt 0:01:37]} Ne3 {[%emt 0:02:47]} 27. Re1 {[%emt 0:00:12]} Ng2 {[%emt 0:00:04]} 28. Rf1 {[%emt 0:00:08]} Ne3 {[%emt 0:00:05]} 1/2-1/2